bitfinex/quotes_BTCUSD_20230118
["timestamp","ask_amount","ask_price","bid_price","bid_amount"]
[1674027940889,0.307,21278.0,21277.0,0.001]
[1674027945204,0.30688989,21278.0,21277.0,0.1115]
[1674027945716,0.30688989,21278.0,21277.0,0.1065]
[1674027946787,0.30688989,21278.0,21277.0,0.686891]
[1674027947064,1e-08,21278.0,21277.0,1.26933121]
[1674027947381,1e-08,21278.0,21277.0,1.38107939]
[1674027947916,1e-08,21278.0,21277.0,1.92663775]
[1674027947917,0.01265256,21278.0,21277.0,1.92663775]
[1674027948167,0.01265256,21278.0,21277.0,2.03713775]
[1674027948435,0.01265256,21278.0,21277.0,2.01668854]
[1674027948696,0.01265256,21278.0,21277.0,1.47709134]
[1674027948946,1e-08,21278.0,21277.0,1.47709134]
[1674027949475,1e-08,21278.0,21277.0,1.96023222]
[1674027949733,1e-08,21278.0,21277.0,1.64575769]
[1674027950004,0.01265256,21278.0,21277.0,1.64575769]
[1674027950260,0.01265256,21278.0,21277.0,1.38509134]
[1674027950519,0.01265256,21278.0,21277.0,1.47709134]
[1674027950783,0.01265255,21278.0,21277.0,1.47709134]
[1674027951036,0.04962367,21281.0,21279.0,0.25]
[1674027951425,0.04962367,21281.0,21279.0,0.830443]
[1674027951581,0.38672938,21282.0,21279.0,0.580443]
[1674027951836,0.38672938,21282.0,21279.0,0.61531487]
[1674027952088,0.38672938,21282.0,21279.0,0.580443]
[1674027952347,0.38672938,21282.0,21280.0,8.239e-05]
[1674027952630,0.38672938,21282.0,21280.0,0.10998239]
[1674027952880,0.01270538,21281.0,21280.0,0.10998239]
[1674027953399,0.01270538,21281.0,21280.0,1.16023039]
[1674027953923,0.43438216,21283.0,21280.0,0.2203]
[1674027954194,0.39911677,21281.0,21280.0,0.1104]
[1674027954446,0.39911677,21281.0,21278.0,0.580151]
[1674027954447,0.40011677,21281.0,21278.0,0.580151]
[1674027954699,0.59084272,21281.0,21278.0,0.580151]
[1674027954949,0.40011677,21281.0,21278.0,0.580151]
[1674027955459,0.39911677,21281.0,21278.0,0.580151]
[1674027955728,0.39911677,21281.0,21278.0,0.673151]
[1674027956545,0.39911677,21281.0,21279.0,0.1105]
[1674027956757,0.01179013,21280.0,21279.0,0.1105]
[1674027957254,0.01179013,21280.0,21279.0,0.3605]
[1674027957836,0.01179013,21280.0,21279.0,0.4535]
[1674027958022,0.01179013,21280.0,21279.0,0.45357847]
[1674027959838,0.46986,21283.0,21279.0,0.45357847]
[1674027960093,0.46986,21283.0,21279.0,0.48845034]
[1674027960094,0.01,21280.0,21279.0,0.48845034]
[1674027960347,0.01,21280.0,21279.0,0.20357847]
[1674027960859,0.01,21280.0,21279.0,0.36057847]
[1674027961122,0.01,21280.0,21279.0,1.41697047]
[1674027961675,0.01,21280.0,21279.0,1.50397047]
[1674027962700,0.01,21280.0,21279.0,1.39347047]
[1674027964713,0.01,21280.0,21279.0,1.80367047]
[1674027965368,0.01,21280.0,21279.0,1.50367047]
[1674027966480,0.01,21280.0,21279.0,1.72663163]
[1674027966691,0.01,21280.0,21279.0,2.02663163]
[1674027967255,0.00989962,21280.0,21279.0,2.5188334]
[1674027967511,0.00989962,21280.0,21279.0,3.65773383]
[1674027967764,0.00989962,21280.0,21279.0,3.6519794]
[1674027968058,0.41429272,21286.0,21280.0,0.16073283]
[1674027968366,0.41429272,21286.0,21285.0,0.1105]
[1674027968625,0.41429272,21286.0,21284.0,0.25]
[1674027968897,0.01502255,21285.0,21283.0,0.579747]
[1674027969413,0.01502255,21285.0,21282.0,0.580361]
[1674027969931,0.02502255,21285.0,21283.0,0.00015673]
[1674027970184,0.02502255,21285.0,21283.0,0.00815673]
[1674027970185,0.02602255,21285.0,21283.0,0.00815673]
[1674027970440,0.02502255,21285.0,21283.0,0.00015673]
[1674027970758,0.02602255,21285.0,21283.0,0.00015673]
[1674027970940,0.02502255,21285.0,21283.0,0.00015673]
[1674027971446,0.02502255,21285.0,21282.0,0.580361]
[1674027971711,0.01502255,21285.0,21282.0,0.580361]
[1674027971972,0.16602255,21285.0,21283.0,0.008]
[1674027972240,0.01502255,21285.0,21282.0,0.1105]
[1674027972476,0.48583655,21285.0,21282.0,0.1185]
[1674027972752,0.63483655,21285.0,21282.0,0.1105]
[1674027973006,0.470814,21285.0,21283.0,0.008]
[1674027973287,0.83512969,21286.0,21282.0,0.580367]
[1674027973515,0.83512969,21286.0,21282.0,0.62323887]
[1674027973516,0.001,21285.0,21282.0,0.62323887]
[1674027973769,0.36533369,21286.0,21282.0,1.050247]
[1674027974026,0.001,21285.0,21283.0,0.008]
[1674027974280,0.98513069,21286.0,21282.0,0.1105]
[1674027974622,0.001,21285.0,21282.0,0.1185]
[1674027974834,0.98513069,21286.0,21282.0,0.1105]
[1674027974835,1.45493769,21286.0,21282.0,0.1105]
[1674027975283,1.56483769,21286.0,21281.0,0.469884]
[1674027975536,1.13575664,21286.0,21282.0,0.469878]
[1674027975790,1.41482269,21286.0,21281.0,0.469887]
[1674027976044,1.60554864,21286.0,21281.0,0.50475887]
[1674027976306,1.13575164,21286.0,21281.0,0.97466087]
[1674027976564,1.13675164,21286.0,21281.0,0.98266087]
[1674027976822,1.13675164,21286.0,21283.0,0.25]
[1674027977080,1.41581769,21286.0,21283.0,0.25]
[1674027977334,0.94602569,21286.0,21284.0,0.00149873]
[1674027977595,0.36633369,21286.0,21284.0,0.0363706]
[1674027977859,0.36533369,21286.0,21284.0,0.00149873]
[1674027978650,0.00867287,21287.0,21284.0,0.47133173]
[1674027979664,0.001,21286.0,21284.0,0.47133173]
[1674027980696,0.00867287,21287.0,21284.0,0.47133173]
[1674027980926,0.00967287,21287.0,21284.0,0.94716773]
[1674027981192,0.00967287,21287.0,21284.0,0.94116773]
[1674027981441,0.00867287,21287.0,21284.0,0.94116773]
[1674027981696,0.00867287,21287.0,21284.0,1.52437502]
[1674027981950,0.00967287,21287.0,21285.0,0.0751]
[1674027982284,0.00967287,21287.0,21286.0,0.469792]
[1674027983567,0.00867287,21287.0,21286.0,0.469792]
[1674027983772,0.00967287,21287.0,21286.0,0.476792]
[1674027984017,0.00967287,21287.0,21286.0,0.007]
[1674027985068,0.00967287,21287.0,21286.0,0.476792]
[1674027985836,0.01025818,21290.0,21287.0,0.49016934]
[1674027986144,0.01025818,21290.0,21288.0,2.55629036]
[1674027986402,0.01025818,21290.0,21289.0,0.80367449]
[1674027986661,0.01025818,21290.0,21289.0,2.56408765]
[1674027987179,0.06152981,21294.0,21290.0,0.15]
[1674027987433,0.06152981,21294.0,21293.0,0.1495]
[1674027987721,0.01153045,21294.0,21293.0,1.483811]
[1674027988472,0.01153045,21294.0,21293.0,1.825811]
[1674027989788,0.01153045,21294.0,21293.0,2.19350436]
[1674027990300,0.01153045,21294.0,21293.0,2.49350436]
[1674027990828,0.01153045,21294.0,21293.0,2.19350436]
[1674027991132,0.01153045,21294.0,21293.0,2.49350436]
[1674027992732,0.01153045,21294.0,21293.0,2.19350436]
[1674027993003,0.01153045,21294.0,21293.0,2.49350436]
[1674027993515,0.01153045,21294.0,21293.0,2.49357607]
[1674027994291,0.01153045,21294.0,21293.0,2.47797889]
[1674027994535,0.01153045,21294.0,21293.0,2.17797889]
[1674027995610,0.01153045,21294.0,21293.0,1.64896736]
[1674027996391,0.01153045,21294.0,21293.0,1.30696736]
[1674027996950,0.01153045,21294.0,21293.0,1.42541472]
[1674027997201,0.01153045,21294.0,21293.0,1.17541472]
[1674027997735,0.01153045,21294.0,21293.0,1.42541472]
[1674028001614,0.01153045,21294.0,21293.0,0.95577772]
[1674028002199,0.01153045,21294.0,21293.0,0.95585324]
[1674028002460,0.01153045,21294.0,21293.0,0.70969336]
[1674028002718,0.01153045,21294.0,21293.0,0.342]
[1674028002987,0.40326884,21294.0,21293.0,0.342]
[1674028003391,0.72514284,21294.0,21293.0,0.342]
[1674028003630,0.40326884,21294.0,21293.0,0.342]
[1674028004563,0.40326884,21294.0,21291.0,0.17080102]
[1674028004790,0.40326884,21294.0,21292.0,0.00014365]
[1674028004999,0.41026884,21294.0,21293.0,0.007]
[1674028005433,0.40326884,21294.0,21291.0,0.64046502]
[1674028006073,0.41026884,21294.0,21293.0,0.007]
[1674028006320,0.40326884,21294.0,21293.0,0.25]
[1674028006573,0.41126884,21294.0,21293.0,0.25]
[1674028007901,0.40326884,21294.0,21293.0,0.25]
[1674028008161,0.01853045,21294.0,21293.0,0.256]
[1674028008427,0.01853045,21294.0,21293.0,0.006]
[1674028009193,0.01153045,21294.0,21292.0,0.469647]
[1674028009457,0.01153045,21294.0,21292.0,0.46972231]
[1674028009799,0.01953045,21294.0,21292.0,0.46972231]
[1674028010750,0.01153045,21294.0,21292.0,0.46895163]
[1674028010973,0.01153045,21294.0,21292.0,0.51395163]
[1674028013854,0.01153045,21294.0,21292.0,0.98361063]
[1674028014387,0.01153045,21294.0,21293.0,0.32932006]
[1674028014650,0.01153045,21294.0,21293.0,0.79895706]
[1674028014944,0.01153045,21294.0,21293.0,1.26859406]
[1674028015459,0.01153045,21294.0,21293.0,0.79895706]
[1674028015735,0.01953045,21294.0,21291.0,0.469666]
[1674028016004,0.2102564,21294.0,21291.0,0.469666]
[1674028016315,0.01953045,21294.0,21291.0,0.469666]
[1674028016568,0.01953045,21294.0,21291.0,0.939348]
[1674028017102,0.01153045,21294.0,21291.0,0.939348]
[1674028017355,0.01253045,21294.0,21292.0,0.16997876]
[1674028017900,0.01253045,21294.0,21291.0,0.555682]
[1674028018145,0.16153045,21294.0,21291.0,0.469679]
[1674028018395,0.01153045,21294.0,21292.0,0.045]
[1674028018662,0.16153045,21294.0,21290.0,0.939366]
[1674028018924,0.2782564,21294.0,21291.0,0.086]
[1674028019194,0.08753045,21294.0,21291.0,0.086]
[1674028020239,0.08653045,21294.0,21290.0,0.469682]
[1674028020497,0.62306331,21293.0,21289.0,0.91409801]
[1674028020752,0.0746,21291.0,21289.0,0.44439101]
[1674028021021,0.321874,21290.0,21287.0,0.469752]
[1674028021271,0.19072595,21290.0,21287.0,0.88797805]
[1674028021852,0.5477567,21291.0,21289.0,0.335]
[1674028022100,1.0164387,21291.0,21289.0,0.25]
[1674028022361,0.001,21290.0,21287.0,0.50322605]
[1674028023194,0.001,21290.0,21289.0,0.25]
[1674028023451,0.4721567,21291.0,21289.0,0.25]
[1674028023985,0.4721567,21291.0,21287.0,0.88799005]
[1674028024272,0.66288265,21291.0,21287.0,0.88799005]
[1674028024534,0.66388265,21291.0,21289.0,0.085]
[1674028024803,0.4721567,21291.0,21287.0,1.35774905]
[1674028025057,0.66388265,21291.0,21287.0,1.44273105]
[1674028025312,0.66288265,21291.0,21287.0,1.35773105]
[1674028025608,0.4721567,21291.0,21287.0,1.35773105]
[1674028026392,0.4731567,21291.0,21289.0,0.085]
[1674028026646,0.4721567,21291.0,21287.0,1.35773005]
[1674028026905,0.4731567,21291.0,21288.0,0.469741]
[1674028027456,0.001,21291.0,21288.0,0.939489]
[1674028027981,0.12271264,21292.0,21288.0,0.939489]
[1674028028466,0.12271264,21292.0,21289.0,0.1653328]
[1674028028468,0.001,21291.0,21289.0,0.20020467]
[1674028028745,0.001,21291.0,21290.0,0.469704]
[1674028028997,0.001,21291.0,21290.0,0.939408]
[1674028029264,0.01153045,21294.0,21290.0,0.939408]
[1674028029566,0.001,21292.0,21290.0,0.50457587]
[1674028029825,0.01153045,21294.0,21293.0,0.25]
[1674028030622,0.33440445,21294.0,21293.0,0.25]
[1674028030908,0.01153045,21294.0,21293.0,0.25]
[1674028031182,0.01953045,21294.0,21293.0,0.25]
[1674028032516,0.34140445,21294.0,21293.0,0.25]
[1674028033022,0.48914545,21294.0,21293.0,0.25]
[1674028033281,0.81101945,21294.0,21293.0,0.25]
[1674028034085,1.03571945,21294.0,21293.0,0.25]
[1674028034883,0.99838006,21294.0,21293.0,0.25]
[1674028035163,0.88571945,21294.0,21293.0,0.25]
[1674028035939,0.09423045,21294.0,21293.0,0.25]
[1674028036466,0.01953045,21294.0,21293.0,0.25]
[1674028037002,0.01153045,21294.0,21293.0,0.25]
[1674028037260,0.04053045,21294.0,21293.0,0.255]
[1674028037525,0.01153045,21294.0,21293.0,0.25]
[1674028037793,0.04053045,21294.0,21293.0,0.255]
[1674028038832,0.01153045,21294.0,21293.0,0.25]
[1674028039386,0.02353045,21294.0,21293.0,0.25]
[1674028039646,0.01153045,21294.0,21293.0,0.25]
[1674028039904,0.04053045,21294.0,21293.0,0.255]
[1674028040173,0.01153045,21294.0,21293.0,0.25]
[1674028040449,0.02353045,21294.0,21293.0,0.25]
[1674028040705,0.01153045,21294.0,21293.0,0.25]
[1674028040971,0.04053045,21294.0,21293.0,0.255]
[1674028041781,0.01153045,21294.0,21293.0,0.25]
[1674028042039,0.01353045,21294.0,21293.0,0.25]
[1674028042318,0.01153045,21294.0,21293.0,0.25]
[1674028042586,0.04053045,21294.0,21293.0,0.255]
[1674028043195,0.36240445,21294.0,21293.0,0.255]
[1674028043861,0.51240445,21294.0,21293.0,0.255]
[1674028044346,0.36240445,21294.0,21293.0,0.255]
[1674028044566,0.33340445,21294.0,21293.0,0.25]
[1674028044790,0.36240445,21294.0,21293.0,0.255]
[1674028045223,0.36240445,21294.0,21293.0,0.04362772]
[1674028046326,0.83201945,21294.0,21293.0,0.04362772]
[1674028046562,0.98201945,21294.0,21293.0,0.04362772]
[1674028046839,0.83201945,21294.0,21293.0,0.005]
[1674028047250,0.98201945,21294.0,21293.0,0.005]
[1674028048942,0.83201945,21294.0,21293.0,0.005]
[1674028049783,0.98201945,21294.0,21293.0,0.005]
[1674028050047,0.83201945,21294.0,21293.0,0.005]
[1674028050574,0.36240445,21294.0,21293.0,0.005]
[1674028051131,0.04053045,21294.0,21293.0,0.005]
[1674028057968,0.36240445,21294.0,21293.0,0.005]
[1674028058796,0.04053045,21294.0,21293.0,0.005]
[1674028059058,0.36240445,21294.0,21293.0,0.005]
[1674028060153,0.04053045,21294.0,21293.0,0.005]
[1674028060408,0.04053045,21294.0,21293.0,0.00515248]
[1674028060943,0.04053045,21294.0,21293.0,0.005]
[1674028062280,0.04053045,21294.0,21293.0,0.00515248]
[1674028062771,0.04053045,21294.0,21293.0,0.005]
[1674028065621,1.41449084,21294.0,21293.0,0.005]
[1674028065874,0.36240445,21294.0,21293.0,0.005]
[1674028066130,0.47506506,21294.0,21293.0,0.005]
[1674028066386,0.36240445,21294.0,21293.0,0.005]
[1674028067417,1.41450929,21294.0,21293.0,0.005]
[1674028067891,3.12044426,21294.0,21293.0,0.005]
[1674028068146,3.21154135,21294.0,21293.0,0.00488782]
[1674028068412,2.76347651,21294.0,21293.0,0.00488782]
[1674028069209,3.06347651,21294.0,21293.0,0.00488782]
[1674028069426,3.28874925,21294.0,21293.0,0.00488782]
[1674028069681,3.06347651,21294.0,21293.0,0.00488782]
[1674028069957,2.76347651,21294.0,21293.0,0.00488782]
[1674028070232,2.98867651,21294.0,21293.0,0.00488782]
[1674028070481,2.91394813,21294.0,21293.0,0.00488782]
[1674028071523,2.89171852,21294.0,21293.0,0.00488782]
[1674028071786,3.06063169,21294.0,21293.0,0.00488782]
[1674028072034,2.89171852,21294.0,21293.0,0.00488782]
[1674028072544,3.06063183,21294.0,21293.0,0.00488782]
[1674028072834,2.98563183,21294.0,21293.0,0.00488782]
[1674028073821,2.90836499,21294.0,21293.0,0.00488782]
[1674028074081,3.26441405,21294.0,21293.0,0.00488782]
[1674028075128,3.48461405,21294.0,21293.0,0.00488782]
[1674028075456,2.83424583,21294.0,21293.0,0.00488782]
[1674028075638,2.85526545,21294.0,21293.0,0.00488782]
[1674028076985,3.35936658,21294.0,21293.0,0.00488782]
[1674028077749,3.0780459,21294.0,21293.0,0.00488782]
[1674028078052,2.68641592,21294.0,21293.0,0.00488782]
[1674028078277,3.13343322,21294.0,21293.0,0.00488782]
[1674028078524,3.43661471,21294.0,21293.0,0.00488782]
[1674028078788,3.71803145,21294.0,21293.0,0.00488782]
[1674028079049,3.43661471,21294.0,21293.0,0.00488782]
[1674028079583,3.82163898,21294.0,21293.0,0.00488782]
[1674028080342,4.5726008,21294.0,21293.0,0.00488782]
[1674028080596,4.29125398,21294.0,21293.0,0.00488782]
[1674028080854,4.29125398,21294.0,21293.0,0.00313168]
[1674028081379,4.57259557,21294.0,21293.0,0.00313168]
[1674028082159,4.0984934,21294.0,21293.0,0.00313168]
[1674028082653,3.9880934,21294.0,21293.0,0.00313168]
[1674028083179,3.71525181,21294.0,21293.0,0.00313168]
[1674028083699,3.99654361,21294.0,21293.0,0.00313168]
[1674028085770,4.10604361,21294.0,21293.0,0.00313168]
[1674028086093,4.58014578,21294.0,21293.0,0.00313168]
[1674028086590,0.15,21293.0,21286.0,0.73163756]
[1674028086842,0.1103,21290.0,21286.0,0.40408594]
[1674028087109,0.51259995,21289.0,21286.0,0.40408594]
[1674028087372,0.34072595,21289.0,21286.0,0.40408594]
[1674028087627,0.19072595,21289.0,21286.0,0.40408594]
[1674028088180,1.04975,21290.0,21286.0,0.40408594]
[1674028088520,1.049729,21290.0,21286.0,0.40408594]
[1674028088714,1.199729,21290.0,21286.0,0.40408594]
[1674028088968,1.049729,21290.0,21286.0,0.40408594]
[1674028089226,0.009,21289.0,21286.0,0.40708594]
[1674028089485,1.049725,21290.0,21286.0,0.40408594]
[1674028089780,1.059725,21290.0,21286.0,0.44195781]
[1674028090038,1.53402924,21290.0,21286.0,0.44195781]
[1674028090297,1.53402924,21290.0,21286.0,0.40708594]
[1674028090554,0.59460424,21290.0,21286.0,1.38152181]
[1674028091105,0.59460424,21290.0,21286.0,0.91174681]
[1674028091600,0.59460424,21290.0,21286.0,0.87687494]
[1674028091894,1.06431124,21290.0,21286.0,0.87687494]
[1674028092698,0.95401124,21290.0,21286.0,0.87687494]
[1674028093205,1.14473719,21290.0,21286.0,0.87687494]
[1674028093464,1.61444119,21290.0,21286.0,0.40708594]
[1674028094062,0.1104,21289.0,21286.0,0.40708594]
[1674028094896,0.1104,21289.0,21286.0,0.40408594]
[1674028095139,0.1104,21289.0,21286.0,0.40708594]
[1674028095140,0.1194,21289.0,21286.0,0.40708594]
[1674028096763,0.589129,21289.0,21286.0,0.40708594]
[1674028098056,0.1194,21289.0,21286.0,0.40708594]
[1674028098570,0.589143,21289.0,21286.0,0.40708594]
[1674028099885,0.1194,21289.0,21286.0,0.40708594]
[1674028100159,0.2694,21289.0,21286.0,0.40708594]
[1674028100418,0.739127,21289.0,21286.0,0.40708594]
[1674028101457,0.589127,21289.0,21286.0,0.40708594]
[1674028102452,0.58904905,21289.0,21286.0,0.40708594]
[1674028102711,0.478727,21289.0,21286.0,0.40708594]
[1674028104307,0.009,21289.0,21286.0,0.40708594]
[1674028104580,0.009,21289.0,21286.0,0.98697394]
[1674028105379,0.009,21289.0,21286.0,1.09899378]
[1674028105680,0.009,21289.0,21286.0,0.98697394]
[1674028106212,0.009,21289.0,21286.0,1.09899378]
[1674028108595,0.009,21289.0,21286.0,1.73681553]
[1674028109154,0.009,21289.0,21286.0,1.56878578]
[1674028109725,0.009,21289.0,21287.0,0.00037797]
[1674028110238,0.009,21289.0,21286.0,0.98695594]
[1674028110762,0.47430424,21290.0,21286.0,0.98395594]
[1674028111025,0.01,21289.0,21286.0,1.45374794]
[1674028111533,0.019,21289.0,21286.0,1.45674794]
[1674028112582,0.47430424,21290.0,21286.0,1.45374794]
[1674028112836,0.47430424,21290.0,21286.0,1.22818499]
[1674028112837,0.48430424,21290.0,21286.0,1.22818499]
[1674028113117,0.47430424,21290.0,21286.0,1.22518499]
[1674028113359,0.009,21289.0,21286.0,1.33720483]
[1674028113654,0.009,21289.0,21286.0,1.30533296]
[1674028114148,0.009,21289.0,21286.0,1.47336271]
[1674028114627,0.47430424,21290.0,21287.0,0.11201984]
[1674028114662,0.47430424,21290.0,21286.0,1.47036271]
[1674028114925,0.47430424,21290.0,21286.0,1.00057071]
[1674028115184,0.47430424,21290.0,21287.0,0.469767]
[1674028115977,0.009,21289.0,21287.0,0.939537]
[1674028116246,0.47430424,21290.0,21287.0,0.939537]
[1674028116745,0.47830424,21290.0,21287.0,0.942537]
[1674028117778,0.47830424,21290.0,21287.0,1.05455684]
[1674028118043,0.004,21290.0,21287.0,1.22296456]
[1674028118310,0.004,21290.0,21288.0,0.1101]
[1674028118569,0.004,21290.0,21288.0,0.76930558]
[1674028119604,0.04780443,21291.0,21288.0,0.76930558]
[1674028119826,0.055,21290.0,21288.0,0.76930558]
[1674028120588,0.055,21290.0,21288.0,0.76929858]
[1674028120905,0.055,21290.0,21289.0,0.1104]
[1674028121109,0.055,21290.0,21289.0,0.2604]
[1674028121359,0.055,21290.0,21289.0,1.199852]
[1674028121621,0.055,21290.0,21289.0,1.049852]
[1674028121893,0.35243164,21293.0,21289.0,1.16187184]
[1674028122188,0.35243164,21293.0,21289.0,1.08472387]
[1674028122443,0.007,21290.0,21289.0,1.049852]
[1674028122711,0.014,21290.0,21289.0,1.065852]
[1674028122988,0.35243164,21293.0,21289.0,1.049852]
[1674028123238,0.46493295,21293.0,21289.0,1.08472387]
[1674028123509,0.35243164,21293.0,21289.0,1.049852]
[1674028123771,0.46493295,21293.0,21289.0,1.049852]
[1674028124048,0.46493295,21293.0,21289.0,0.580126]
[1674028124300,0.82208164,21293.0,21289.0,0.1104]
[1674028124575,1.08458295,21293.0,21289.0,0.580121]
[1674028124874,0.46493295,21293.0,21289.0,0.580121]
[1674028125412,0.46493295,21293.0,21289.0,0.469721]
[1674028125673,0.008,21290.0,21289.0,0.478721]
[1674028125932,0.28997595,21290.0,21287.0,0.469752]
[1674028126190,0.39997595,21290.0,21289.0,0.009]
[1674028126454,0.20925,21290.0,21289.0,0.009]
[1674028126716,0.11,21290.0,21289.0,0.009]
[1674028126976,0.11,21290.0,21288.0,0.469743]
[1674028127233,0.118,21290.0,21288.0,0.469743]
[1674028127534,0.11,21290.0,21288.0,0.469743]
[1674028128368,0.11,21290.0,21286.0,0.61488774]
[1674028128369,0.44108638,21289.0,21286.0,0.61488774]
[1674028128634,0.44108638,21289.0,21286.0,0.14511574]
[1674028128635,0.63181233,21289.0,21286.0,0.14511574]
[1674028128890,0.63181233,21289.0,21288.0,0.009]
[1674028129145,0.44108638,21289.0,21286.0,0.14511574]
[1674028129413,0.44908638,21289.0,21286.0,0.15311574]
[1674028129669,0.71773461,21289.0,21286.0,0.14511574]
[1674028129927,0.44908638,21289.0,21288.0,0.008]
[1674028130184,0.44108638,21289.0,21285.0,0.580207]
[1674028130464,0.63181233,21289.0,21286.0,0.008]
[1674028130719,0.44908638,21289.0,21285.0,1.06346602]
[1674028130978,0.01445005,21288.0,21285.0,0.62853089]
[1674028131278,0.01445005,21288.0,21285.0,0.59365902]
[1674028131523,0.01445005,21288.0,21286.0,0.008]
[1674028131791,0.01445005,21288.0,21285.0,0.12384502]
[1674028132070,0.01445005,21288.0,21285.0,0.13184502]
[1674028132348,0.13569997,21288.0,21285.0,0.13184502]
[1674028132633,0.13569997,21288.0,21285.0,0.008]
[1674028132634,0.54277302,21287.0,21285.0,0.008]
[1674028132878,0.54277302,21287.0,21284.0,0.00746836]
[1674028133133,0.54277302,21287.0,21285.0,0.008]
[1674028133969,0.54277302,21287.0,21284.0,0.00746836]
[1674028134453,0.54277302,21287.0,21284.0,0.01546836]
[1674028134454,0.55077302,21287.0,21284.0,0.01546836]
[1674028134715,0.55077302,21287.0,21284.0,0.00746836]
[1674028135268,1.02055202,21287.0,21284.0,0.00746836]
[1674028135493,1.02855202,21287.0,21285.0,0.008]
[1674028135764,1.22918722,21287.0,21285.0,0.008]
[1674028136279,1.21318722,21287.0,21284.0,0.00746836]
[1674028136549,1.22118722,21287.0,21284.0,0.01546836]
[1674028136787,1.21318722,21287.0,21284.0,0.00746836]
[1674028137050,1.22118722,21287.0,21285.0,0.008]
[1674028137332,1.01255202,21287.0,21284.0,0.00746836]
[1674028138132,1.02055202,21287.0,21284.0,0.01546836]
[1674028138923,1.17055202,21287.0,21284.0,0.01546836]
[1674028139662,1.64032202,21287.0,21284.0,0.01546836]
[1674028139906,0.15,21286.0,21284.0,0.01546836]
[1674028140423,0.70077302,21287.0,21284.0,0.01546836]
[1674028140681,0.4698,21286.0,21284.0,0.00746836]
[1674028140928,0.4778,21286.0,21284.0,0.01546836]
[1674028141154,0.54277302,21287.0,21284.0,0.00746836]
[1674028141677,0.008,21287.0,21284.0,0.17650816]
[1674028142195,0.008,21287.0,21284.0,0.14163629]
[1674028142702,0.008,21287.0,21284.0,0.25203629]
[1674028142930,0.48421305,21288.0,21284.0,0.71386529]
[1674028143190,0.008,21286.0,21284.0,0.75673716]
[1674028143424,0.48421305,21288.0,21284.0,0.71386529]
[1674028143672,0.008,21287.0,21284.0,0.75673716]
[1674028143939,0.48421305,21288.0,21284.0,0.71386529]
[1674028144214,0.49221305,21288.0,21284.0,0.75673716]
[1674028144463,0.49221305,21288.0,21284.0,0.72186529]
[1674028144975,0.682939,21288.0,21284.0,0.72186529]
[1674028145231,0.49221305,21288.0,21284.0,0.72186529]
[1674028147438,0.49221305,21288.0,21284.0,0.75673716]
[1674028147964,0.02245005,21288.0,21284.0,0.75673716]
[1674028148220,0.02245005,21288.0,21284.0,1.22657316]
[1674028148479,0.02245005,21288.0,21284.0,1.19170129]
[1674028151647,0.02245005,21288.0,21284.0,1.19158605]
[1674028152946,0.02245005,21288.0,21284.0,1.33847776]
[1674028153450,0.02245005,21288.0,21284.0,1.30360589]
[1674028155519,0.213176,21288.0,21284.0,1.30360589]
[1674028156868,0.02245005,21288.0,21284.0,1.47163564]
[1674028157127,0.02245005,21288.0,21284.0,1.50650751]
[1674028157928,0.02245005,21288.0,21285.0,0.11201984]
[1674028158203,0.02245005,21288.0,21286.0,1.049984]
[1674028159038,0.01445005,21288.0,21286.0,1.049984]
[1674028159558,0.02245005,21288.0,21286.0,1.207984]
[1674028159995,0.02245005,21288.0,21286.0,1.057984]
[1674028159997,0.02245005,21288.0,21286.0,1.207984]
[1674028160270,0.02245005,21288.0,21287.0,0.1101]
[1674028160271,1e-08,21288.0,21287.0,0.1101]
[1674028160532,1e-08,21288.0,21287.0,1.04964]
[1674028160822,1e-08,21288.0,21287.0,1.57205984]
[1674028161305,1e-08,21288.0,21287.0,1.74008959]
[1674028161306,1e-08,21288.0,21287.0,2.67433029]
[1674028161564,1e-08,21288.0,21287.0,1.82212287]
[1674028161843,0.48357171,21293.0,21287.0,1.93426395]
[1674028162105,0.48357171,21293.0,21289.0,0.1104]
[1674028162394,0.48357171,21293.0,21290.0,0.50457287]
[1674028162905,0.48357171,21293.0,21290.0,0.61387287]
[1674028163165,0.055171,21294.0,21290.0,0.579001]
[1674028163437,0.055171,21294.0,21291.0,0.13800778]
[1674028163723,0.008,21293.0,21291.0,0.60768278]
[1674028164859,0.055171,21294.0,21291.0,1.07736478]
[1674028165134,0.055171,21294.0,21292.0,0.00037789]
[1674028165641,0.00753045,21294.0,21291.0,0.61368278]
[1674028165907,0.00753045,21294.0,21291.0,0.60768278]
[1674028166177,0.00753045,21294.0,21291.0,0.61468278]
[1674028166516,0.00753045,21294.0,21291.0,0.60768278]
[1674028166686,0.00753045,21294.0,21292.0,0.008]
[1674028166963,0.00753045,21294.0,21293.0,0.1098]
[1674028168748,0.00753045,21294.0,21293.0,0.1178]
[1674028170809,0.00753045,21294.0,21293.0,0.008]
[1674028180213,0.10678045,21294.0,21293.0,0.008]
[1674028180473,1.02910423,21294.0,21293.0,0.008]
[1674028180742,1.46097823,21294.0,21293.0,0.008]
[1674028181260,1.93059323,21294.0,21293.0,0.008]
[1674028183612,1.46097823,21294.0,21293.0,0.008]
[1674028184389,1.35097823,21294.0,21293.0,0.008]
[1674028184699,0.92985423,21294.0,21293.0,0.008]
[1674028184964,0.46023923,21294.0,21293.0,0.008]
[1674028185456,0.92985423,21294.0,21293.0,0.008]
[1674028185995,0.46023923,21294.0,21293.0,0.008]
[1674028193572,0.00753045,21294.0,21293.0,0.008]
[1674028196649,0.10678045,21294.0,21293.0,0.008]
[1674028196903,0.25678045,21294.0,21293.0,0.008]
[1674028197413,0.72639545,21294.0,21293.0,0.008]
[1674028197668,2.09563343,21294.0,21293.0,0.0079022]
[1674028197936,1.94563343,21294.0,21293.0,0.0079022]
[1674028202471,2.5840004,21294.0,21293.0,0.0079022]
[1674028204253,2.41524843,21294.0,21293.0,0.0079022]
[1674028205280,1.94563343,21294.0,21293.0,0.0079022]
[1674028205809,1.84638343,21294.0,21293.0,0.0079022]
[1674028206073,1.84636436,21294.0,21293.0,0.0079022]
[1674028206331,0.79441945,21294.0,21293.0,0.0079022]
[1674028206585,1.52449404,21294.0,21293.0,0.0079022]
[1674028206881,1.84636804,21294.0,21293.0,0.0079022]
[1674028207367,0.79441945,21294.0,21293.0,0.0079022]
[1674028207632,0.00293045,21294.0,21293.0,0.0079022]